Workbook

Sheet Table
B3: Matches Played | C3: Matches Won | D3: Games Won | E3: Games Lost | F3: Points Won | G3: Points Lost | H3: Points Diff
A4: George Bees | B4: =COUNT('George Bees'!E:E) -> 18 | C4: =SUM('George Bees'!I:I) -> 15 | D4: =SUM('George Bees'!E:E) -> 63 | E4: =SUM('George Bees'!F:F) -> 27 | F4: =SUM('George Bees'!G:G) -> 1032 | G4: =SUM('George Bees'!H:H) -> 689 | H4: =F4-G4 -> 343
A5: OldUns | B5: =COUNT(OldUns!E:E) -> 18 | C5: =SUM(OldUns!I:I) -> 14 | D5: =SUM(OldUns!E:E) -> 57 | E5: =SUM(OldUns!F:F) -> 33 | F5: =SUM(OldUns!G:G) -> 964 | G5: =SUM(OldUns!H:H) -> 833 | H5: =F5-G5 -> 131
A6: Woodentops | B6: =COUNT(Woodentops!E:E) -> 18 | C6: =SUM(Woodentops!I:I) -> 11 | D6: =SUM(Woodentops!E:E) -> 50 | E6: =SUM(Woodentops!F:F) -> 40 | F6: =SUM(Woodentops!G:G) -> 957 | G6: =SUM(Woodentops!H:H) -> 827 | H6: =F6-G6 -> 130
A7: Plume | B7: =COUNT(Plume!E:E) -> 18 | C7: =SUM(Plume!I:I) -> 9 | D7: =SUM(Plume!E:E) -> 46 | E7: =SUM(Plume!F:F) -> 44 | F7: =SUM(Plume!G:G) -> 890 | G7: =SUM(Plume!H:H) -> 897 | H7: =F7-G7 -> -7
A8: Bucks Head | B8: =COUNT('Bucks Head'!E:E) -> 18 | C8: =SUM('Bucks Head'!I:I) -> 8 | D8: =SUM('Bucks Head'!E:E) -> 41 | E8: =SUM('Bucks Head'!F:F) -> 49 | F8: =SUM('Bucks Head'!G:G) -> 847 | G8: =SUM('Bucks Head'!H:H) -> 965 | H8: =F8-G8 -> -118
A9: George A | B9: =COUNT('George A'!E:E) -> 18 | C9: =SUM('George A'!I:I) -> 3 | D9: =SUM('George A'!E:E) -> 32 | E9: =SUM('George A'!F:F) -> 58 | F9: =SUM('George A'!G:G) -> 754 | G9: =SUM('George A'!H:H) -> 969 | H9: =F9-G9 -> -215
A10: Rising Sun | B10: =COUNT('Rising Sun'!E:E) -> 18 | C10: =SUM('Rising Sun'!I:I) -> 3 | D10: =SUM('Rising Sun'!E:E) -> 26 | E10: =SUM('Rising Sun'!F:F) -> 64 | F10: =SUM('Rising Sun'!G:G) -> 783 | G10: =SUM('Rising Sun'!H:H) -> 1047 | H10: =F10-G10 -> -264

Sheet Woodentops
A2: Team | B2: Woodentops
K3: Check that there are enough points to win the games
A4: Date | B4: Week | C4: Home/Away | D4: Opponent | E4: Games Won | F4: Games lost | G4: Points For | H4: Points Against | I4: Match Won? | J4: Check that input numbers are within range | K4: Home | L4: Away
A5: 20.04.2014 | B5: 1 | C5: Bye | F5: =IF(E5="","",5-E5) ->  | I5: =IF(E5="","",IF(E5>2,1,0)) ->  | J5: =IF(E5="","",IF(OR(E5<0,E5>5,G5<0,G5>(5*13),H5<0,H5>(5*13)),"Number out of range error","Valid Scores entered")) ->  | K5: =IF(E5="","",IF((E5*13>G5),"Error in submitting Games Won or Points Home","OK")) ->  | L5: =IF(E5="","",IF((F5*13>H5),"Error in submitting Games Won or Points Away","OK")) -> 
A6: 27.04.2015 | B6: =B5+1 -> 2 | C6: Away | D6: Rising Sun | E6: ='Rising Sun'!F6 -> 3 | F6: 2 | G6: ='Rising Sun'!H6 -> 54 | H6: ='Rising Sun'!G6 -> 39 | I6: =IF(E6="","",IF(E6>2,1,0)) -> 1 | J6: =IF(E6="","",IF(OR(E6<0,E6>5,G6<0,G6>(5*13),H6<0,H6>(5*13)),"Number out of range error","Valid Scores entered")) -> Valid Scores entered | K6: =IF(E6="","",IF((E6*13>G6),"Error in submitting Games Won or Points Home","OK")) -> OK | L6: =IF(E6="","",IF((F6*13>H6),"Error in submitting Games Won or Points Away","OK")) -> OK
A7: 04.05.2015 | B7: =B6+1 -> 3 | C7: Bank Hol | I7: =IF(E7="","",IF(E7>2,1,0)) ->  | J7: =IF(E7="","",IF(OR(E7<0,E7>5,G7<0,G7>(5*13),H7<0,H7>(5*13)),"Number out of range error","Valid Scores entered")) ->  | K7: =IF(E7="","",IF((E7*13>G7),"Error in submitting Games Won or Points Home","OK")) -> 
A8: 11.05.2015 | B8: 4 | C8: Home | D8: George A | E8: 4 | F8: 1 | G8: 60 | H8: 38 | I8: 1 | J8: Valid Scores entered | K8: OK | L8: OK
A9: 18.05.2015 | B9: 5 | C9: Away | D9: OldUns | E9: =OldUns!F9 -> 3 | F9: 2 | G9: =OldUns!H9 -> 56 | H9: =OldUns!G9 -> 54 | I9: 1 | J9: Valid Scores entered | K9: OK | L9: OK
A10: 25.05.2015 | B10: 6 | C10: Bank Hol
A11: 01.06.2015 | B11: 7 | C11: Home | D11: Plume | E11: 2 | F11: 3 | G11: 47 | H11: 50 | I11: 0 | J11: Valid Scores entered | K11: OK | L11: OK
A12: 08.06.2015 | B12: 8 | C12: Away | D12: Bucks Head | E12: ='Bucks Head'!F12 -> 4 | F12: 1 | G12: ='Bucks Head'!H12 -> 58 | H12: ='Bucks Head'!G12 -> 38 | I12: 1 | J12: Valid Scores entered | K12: OK | L12: OK
A13: 15.06.2015 | B13: 9 | C13: Home | D13: George Bees | E13: 1 | F13: 4 | G13: 49 | H13: 62 | I13: 0 | J13: Valid Scores entered | K13: OK | L13: OK
A14: 22.06.2015 | B14: 10 | C14: Bye
A15: 29.06.2015 | B15: 11 | C15: Home | D15: Rising Sun | E15: 2 | F15: 3 | G15: 51 | H15: 45 | I15: 0 | J15: Valid Scores entered | K15: OK | L15: OK
A16: 06.07.2015 | B16: 12 | C16: Away | D16: George A | E16: ='George A'!F16 -> 3 | F16: 2 | G16: ='George A'!H16 -> 48 | H16: ='George A'!G16 -> 41 | I16: 1 | J16: Valid Scores entered | K16: OK | L16: OK
A17: 13.07.2015 | B17: 13 | C17: Home | D17: OldUns | E17: 2 | F17: 3 | G17: 53 | H17: 49 | I17: 0 | J17: Valid Scores entered | K17: OK | L17: OK
A18: 20.07.2015 | B18: 14 | C18: Away | D18: Plume | E18: =Plume!F18 -> 3 | F18: 2 | G18: =Plume!H18 -> 58 | H18: =Plume!G18 -> 46 | I18: 1 | J18: Valid Scores entered | K18: OK | L18: OK
A19: 27.07.2015 | B19: 15 | C19: Home | D19: Bucks Head | E19: 4 | F19: 1 | G19: 64 | H19: 36 | I19: 1 | J19: Valid Scores entered | K19: OK | L19: OK
A20: 03.08.2015 | B20: 16 | C20: Away | D20: George Bees | E20: ='George Bees'!F20 -> 2 | F20: 3 | G20: ='George Bees'!H20 -> 44 | H20: ='George Bees'!G20 -> 50 | I20: 0 | J20: Valid Scores entered | K20: OK | L20: OK
A21: 10.08.2015 | B21: 17 | C21: Bye
A22: 17.08.2015 | B22: 18 | C22: Away | D22: Rising Sun | E22: ='Rising Sun'!F22 -> 3 | F22: 2 | G22: ='Rising Sun'!H22 -> 55 | H22: ='Rising Sun'!G22 -> 56 | I22: 1 | J22: Valid Scores entered | K22: OK | L22: OK
A23: 24.08.2015 | B23: 19 | C23: Home | D23: George A | E23: 4 | F23: 1 | G23: 55 | H23: 37 | I23: 1 | J23: Valid Scores entered | K23: OK | L23: OK
A24: 31.08.2015 | B24: 20 | C24: Bank Hol
A25: 07.09.2015 | B25: 21 | C25: Away | D25: OldUns | E25: =OldUns!F25 -> 2 | F25: 3 | G25: =OldUns!H25 -> 50 | H25: =OldUns!G25 -> 54 | I25: 0 | J25: Valid Scores entered | K25: OK | L25: OK
A26: 14.09.2015 | B26: 22 | C26: Home | D26: Plume | E26: 3 | F26: 2 | G26: 58 | H26: 46 | I26: 1 | J26: Valid Scores entered | K26: OK | L26: OK
A27: 21.09.2015 | B27: 23 | C27: Away | D27: Bucks Head | E27: ='Bucks Head'!F27 -> 3 | F27: 2 | G27: ='Bucks Head'!H27 -> 58 | H27: ='Bucks Head'!G27 -> 34 | I27: 1 | J27: Valid Scores entered | K27: OK | L27: OK
A28: 28.09.2015 | B28: 24 | C28: Home | D28: George Bees | E28: 2 | F28: 3 | G28: 39 | H28: 52 | I28: 0 | J28: Valid Scores entered | K28: OK | L28: OK

Sheet Rising Sun
A2: Team | B2: Rising Sun
K3: Check that there are enough points to win the games
A4: Date | B4: Week | C4: Home/Away | D4: Opponent | E4: Games Won | F4: Games lost | G4: Points For | H4: Points Against | I4: Match Won? | J4: Check that input numbers are within range | K4: Home | L4: Away
A5: 20.04.2014 | B5: 1 | C5: Away | D5: George Bees | E5: ='George Bees'!F5 -> 0 | F5: =IF(E5="","",5-E5) -> 5 | G5: ='George Bees'!H5 -> 21 | H5: ='George Bees'!G5 -> 65 | I5: =IF(E5="","",IF(E5>2,1,0)) -> 0 | J5: =IF(E5="","",IF(OR(E5<0,E5>5,G5<0,G5>(5*13),H5<0,H5>(5*13)),"Number out of range error","Valid Scores entered")) -> Valid Scores entered | K5: =IF(E5="","",IF((E5*13>G5),"Error in submitting Games Won or Points Home","OK")) -> OK | L5: =IF(E5="","",IF((F5*13>H5),"Error in submitting Games Won or Points Away","OK")) -> OK
A6: 27.04.2015 | B6: =B5+1 -> 2 | C6: Home | D6: Woodentops | E6: 2 | F6: 3 | G6: 39 | H6: 54 | I6: =IF(E6="","",IF(E6>2,1,0)) -> 0 | J6: =IF(E6="","",IF(OR(E6<0,E6>5,G6<0,G6>(5*13),H6<0,H6>(5*13)),"Number out of range error","Valid Scores entered")) -> Valid Scores entered | K6: =IF(E6="","",IF((E6*13>G6),"Error in submitting Games Won or Points Home","OK")) -> OK | L6: =IF(E6="","",IF((F6*13>H6),"Error in submitting Games Won or Points Away","OK")) -> OK
A7: 04.05.2015 | B7: =B6+1 -> 3 | C7: Bank Hol
A8: 11.05.2015 | B8: 4 | C8: Bye
A9: 18.05.2015 | B9: 5 | C9: Away | D9: George A | E9: ='George A'!F9 -> 1 | F9: 4 | G9: ='George A'!H9 -> 38 | H9: ='George A'!G9 -> 53 | I9: 0 | J9: Valid Scores entered | K9: OK | L9: OK
A10: 25.05.2015 | B10: 6 | C10: Bank Hol
A11: 01.06.2015 | B11: 7 | C11: Home | D11: OldUns | E11: 2 | F11: 3 | G11: 53 | H11: 58 | I11: 0 | J11: Valid Scores entered | K11: OK | L11: OK
A12: 08.06.2015 | B12: 8 | C12: Away | D12: Plume | E12: =Plume!F12 -> 0 | F12: 5 | G12: =Plume!H12 -> 35 | H12: =Plume!G12 -> 65 | I12: 0 | J12: Valid Scores entered | K12: OK | L12: OK
A13: 15.06.2015 | B13: 9 | C13: Home | D13: Bucks Head | E13: 2 | F13: 3 | G13: 44 | H13: 57 | I13: 0 | J13: Valid Scores entered | K13: OK | L13: OK
A14: 22.06.2015 | B14: 10 | C14: Home | D14: George Bees | E14: 1 | F14: 4 | G14: 43 | H14: 63 | I14: 0 | J14: Valid Scores entered | K14: OK | L14: OK
A15: 29.06.2015 | B15: 11 | C15: Away | D15: Woodentops | E15: =Woodentops!F15 -> 3 | F15: 2 | G15: =Woodentops!H15 -> 45 | H15: =Woodentops!G15 -> 51 | I15: 1 | J15: Valid Scores entered | K15: OK | L15: OK
A16: 06.07.2015 | B16: 12 | C16: Bye
A17: 13.07.2015 | B17: 13 | C17: Home | D17: George A | E17: 3 | F17: 2 | G17: 52 | H17: 61 | I17: 1 | J17: Valid Scores entered | K17: OK | L17: OK
A18: 20.07.2015 | B18: 14 | C18: Away | D18: OldUns | E18: =OldUns!F18 -> 0 | F18: 5 | G18: =OldUns!H18 -> 31 | H18: =OldUns!G18 -> 65 | I18: 0 | J18: Valid Scores entered | K18: OK | L18: OK
A19: 27.07.2015 | B19: 15 | C19: Home | D19: Plume | E19: 1 | F19: 4 | G19: 51 | H19: 61 | I19: 0 | J19: Valid Scores entered | K19: OK | L19: OK
A20: 03.08.2015 | B20: 16 | C20: Away | D20: Bucks Head | E20: ='Bucks Head'!F20 -> 0 | F20: 5 | G20: ='Bucks Head'!H20 -> 41 | H20: ='Bucks Head'!G20 -> 65 | I20: 0 | J20: Valid Scores entered | K20: OK | L20: OK
A21: 10.08.2015 | B21: 17 | C21: Away | D21: George Bees | E21: ='George Bees'!F21 -> 1 | F21: 4 | G21: ='George Bees'!H21 -> 42 | H21: ='George Bees'!G21 -> 64 | I21: 0 | J21: Valid Scores entered | K21: OK | L21: OK
A22: 17.08.2015 | B22: 18 | C22: Home | D22: Woodentops | E22: 2 | F22: 3 | G22: 56 | H22: 55 | I22: 0 | J22: Valid Scores entered | K22: OK | L22: OK
A23: 24.08.2015 | B23: 19 | C23: Bye
A24: 31.08.2015 | B24: 20 | C24: Bank Hol
A25: 07.09.2015 | B25: 21 | C25: Away | D25: George A | E25: ='George A'!F25 -> 2 | F25: 3 | G25: ='George A'!H25 -> 47 | H25: ='George A'!G25 -> 50 | I25: 0 | J25: Valid Scores entered | K25: OK | L25: OK
A26: 14.09.2015 | B26: 22 | C26: Home | D26: OldUns | E26: 1 | F26: 4 | G26: 37 | H26: 57 | I26: 0 | J26: Valid Scores entered | K26: OK | L26: OK
A27: 21.09.2015 | B27: 23 | C27: Away | D27: Plume | E27: =Plume!F27 -> 2 | F27: 3 | G27: =Plume!H27 -> 45 | H27: =Plume!G27 -> 53 | I27: 0 | J27: Valid Scores entered | K27: OK | L27: OK
A28: 28.09.2015 | B28: 24 | C28: Home | D28: Bucks Head | E28: 3 | F28: 2 | G28: 63 | H28: 50 | I28: 1 | J28: Valid Scores entered | K28: OK | L28: OK

Sheet George A
A2: Team | B2: George A
K3: Check that there are enough points to win the games
A4: Date | B4: Week | C4: Home/Away | D4: Opponent | E4: Games Won | F4: Games lost | G4: Points For | H4: Points Against | I4: Match Won? | J4: Check that input numbers are within range | K4: Home | L4: Away
A5: 20.04.2014 | B5: 1 | C5: Away | D5: Bucks Head | E5: ='Bucks Head'!F5 -> 2 | F5: =IF(E5="","",5-E5) -> 3 | G5: ='Bucks Head'!H5 -> 44 | H5: ='Bucks Head'!G5 -> 51 | I5: =IF(E5="","",IF(E5>2,1,0)) -> 0 | J5: =IF(E5="","",IF(OR(E5<0,E5>5,G5<0,G5>(5*13),H5<0,H5>(5*13)),"Number out of range error","Valid Scores entered")) -> Valid Scores entered | K5: =IF(E5="","",IF((E5*13>G5),"Error in submitting Games Won or Points Home","OK")) -> OK | L5: =IF(E5="","",IF((F5*13>H5),"Error in submitting Games Won or Points Away","OK")) -> OK
A6: 27.04.2015 | B6: =B5+1 -> 2 | C6: Home | D6: George Bees | E6: 1 | F6: 4 | G6: 28 | H6: 63 | I6: =IF(E6="","",IF(E6>2,1,0)) -> 0 | J6: =IF(E6="","",IF(OR(E6<0,E6>5,G6<0,G6>(5*13),H6<0,H6>(5*13)),"Number out of range error","Valid Scores entered")) -> Valid Scores entered | K6: =IF(E6="","",IF((E6*13>G6),"Error in submitting Games Won or Points Home","OK")) -> OK | L6: =IF(E6="","",IF((F6*13>H6),"Error in submitting Games Won or Points Away","OK")) -> OK
A7: 04.05.2015 | B7: =B6+1 -> 3 | C7: Bank Hol
A8: 11.05.2015 | B8: 4 | C8: Away | D8: Woodentops | E8: =Woodentops!F8 -> 1 | F8: 4 | G8: =Woodentops!H8 -> 38 | H8: =Woodentops!G8 -> 60 | I8: 0 | J8: Valid Scores entered | K8: OK | L8: OK
A9: 18.05.2015 | B9: 5 | C9: Home | D9: Rising Sun | E9: 4 | F9: 1 | G9: 53 | H9: 38 | I9: 1 | J9: Valid Scores entered | K9: OK | L9: OK
A10: 25.05.2015 | B10: 6 | C10: Bank Hol
A11: 01.06.2015 | B11: 7 | C11: Bye
A12: 08.06.2015 | B12: 8 | C12: Away | D12: OldUns | E12: =OldUns!F12 -> 0 | F12: 5 | G12: =OldUns!H12 -> 30 | H12: =OldUns!G12 -> 65 | I12: 0 | J12: Valid Scores entered | K12: OK | L12: OK
A13: 15.06.2015 | B13: 9 | C13: Home | D13: Plume | E13: 2 | F13: 3 | G13: 46 | H13: 52 | I13: 0 | J13: Valid Scores entered | K13: OK | L13: OK
A14: 22.06.2015 | B14: 10 | C14: Home | D14: Bucks Head | E14: 2 | F14: 3 | G14: 49 | H14: 53 | I14: 0 | J14: Valid Scores entered | K14: OK | L14: OK
A15: 29.06.2015 | B15: 11 | C15: Away | D15: George Bees | E15: ='George Bees'!F15 -> 1 | F15: 4 | G15: ='George Bees'!H15 -> 22 | H15: ='George Bees'!G15 -> 63 | I15: 0 | J15: Valid Scores entered | K15: OK | L15: OK
A16: 06.07.2015 | B16: 12 | C16: Home | D16: Woodentops | E16: 2 | F16: 3 | G16: 41 | H16: 48 | I16: 0 | J16: Valid Scores entered | K16: OK | L16: OK
A17: 13.07.2015 | B17: 13 | C17: Away | D17: Rising Sun | E17: ='Rising Sun'!F17 -> 2 | F17: 3 | G17: ='Rising Sun'!H17 -> 61 | H17: ='Rising Sun'!G17 -> 52 | I17: 0 | J17: Valid Scores entered | K17: OK | L17: OK
A18: 20.07.2015 | B18: 14 | C18: Bye
A19: 27.07.2015 | B19: 15 | C19: Home | D19: OldUns | E19: 1 | F19: 4 | G19: 46 | H19: 58 | I19: 0 | J19: Valid Scores entered | K19: OK | L19: OK
A20: 03.08.2015 | B20: 16 | C20: Away | D20: Plume | E20: =Plume!F20 -> 3 | F20: 2 | G20: =Plume!H20 -> 49 | H20: =Plume!G20 -> 39 | I20: 1 | J20: Valid Scores entered | K20: OK | L20: OK
A21: 10.08.2015 | B21: 17 | C21: Away | D21: Bucks Head | E21: ='Bucks Head'!F21 -> 2 | F21: 3 | G21: ='Bucks Head'!H21 -> 56 | H21: ='Bucks Head'!G21 -> 59 | I21: 0 | J21: Valid Scores entered | K21: OK | L21: OK
A22: 17.08.2015 | B22: 18 | C22: Home | D22: George Bees | E22: 1 | F22: 4 | G22: 29 | H22: 62 | I22: 0 | J22: Valid Scores entered | K22: OK | L22: OK
A23: 24.08.2015 | B23: 19 | C23: Away | D23: Woodentops | E23: =Woodentops!F23 -> 1 | F23: 4 | G23: =Woodentops!H23 -> 37 | H23: =Woodentops!G23 -> 55 | I23: 0 | J23: Valid Scores entered | K23: OK | L23: OK
A24: 31.08.2015 | B24: 20 | C24: Bank Hol
A25: 07.09.2015 | B25: 21 | C25: Home | D25: Rising Sun | E25: 3 | F25: 2 | G25: 50 | H25: 47 | I25: 1 | J25: Valid Scores entered | K25: OK | L25: OK
A26: 14.09.2015 | B26: 22 | C26: Bye
A27: 21.09.2015 | B27: 23 | C27: Away | D27: OldUns | E27: =OldUns!F27 -> 2 | F27: 3 | G27: =OldUns!H27 -> 38 | H27: =OldUns!G27 -> 57 | I27: 0 | J27: Valid Scores entered | K27: OK | L27: OK
A28: 28.09.2015 | B28: 24 | C28: Home | D28: Plume | E28: 2 | F28: 3 | G28: 37 | H28: 47 | I28: 0 | J28: Valid Scores entered | K28: OK | L28: OK

Sheet OldUns
A2: Team | B2: OldUns
K3: Check that there are enough points to win the games
A4: Date | B4: Week | C4: Home/Away | D4: Opponent | E4: Games Won | F4: Games lost | G4: Points For | H4: Points Against | I4: Match Won? | J4: Check that input numbers are within range | K4: Home | L4: Away
A5: 20.04.2014 | B5: 1 | C5: Away | D5: Plume | E5: =Plume!F5 -> 2 | F5: =IF(E5="","",5-E5) -> 3 | G5: =Plume!H5 -> 52 | H5: =Plume!G5 -> 58 | I5: =IF(E5="","",IF(E5>2,1,0)) -> 0 | J5: =IF(E5="","",IF(OR(E5<0,E5>5,G5<0,G5>(5*13),H5<0,H5>(5*13)),"Number out of range error","Valid Scores entered")) -> Valid Scores entered | K5: =IF(E5="","",IF((E5*13>G5),"Error in submitting Games Won or Points Home","OK")) -> OK | L5: =IF(E5="","",IF((F5*13>H5),"Error in submitting Games Won or Points Away","OK")) -> OK
A6: 27.04.2015 | B6: =B5+1 -> 2 | C6: Home | D6: Bucks Head | E6: 1 | F6: 4 | G6: 36 | H6: 63 | I6: =IF(E6="","",IF(E6>2,1,0)) -> 0 | J6: =IF(E6="","",IF(OR(E6<0,E6>5,G6<0,G6>(5*13),H6<0,H6>(5*13)),"Number out of range error","Valid Scores entered")) -> Valid Scores entered | K6: =IF(E6="","",IF((E6*13>G6),"Error in submitting Games Won or Points Home","OK")) -> OK | L6: =IF(E6="","",IF((F6*13>H6),"Error in submitting Games Won or Points Away","OK")) -> OK
A7: 04.05.2015 | B7: =B6+1 -> 3 | C7: Bank Hol
A8: 11.05.2015 | B8: 4 | C8: Away | D8: George Bees | E8: ='George Bees'!F8 -> 1 | F8: 4 | G8: ='George Bees'!H8 -> 26 | H8: ='George Bees'!G8 -> 61 | I8: 0 | J8: Valid Scores entered | K8: OK | L8: OK
A9: 18.05.2015 | B9: 5 | C9: Home | D9: Woodentops | E9: 2 | F9: 3 | G9: 54 | H9: 56 | I9: 0 | J9: Valid Scores entered | K9: OK | L9: OK
A10: 25.05.2015 | B10: 6 | C10: Bank Hol
A11: 01.06.2015 | B11: 7 | C11: Away | D11: Rising Sun | E11: ='Rising Sun'!F11 -> 3 | F11: 2 | G11: ='Rising Sun'!H11 -> 58 | H11: ='Rising Sun'!G11 -> 53 | I11: 1 | J11: Valid Scores entered | K11: OK | L11: OK
A12: 08.06.2015 | B12: 8 | C12: Home | D12: George A | E12: 5 | F12: 0 | G12: 65 | H12: 30 | I12: 1 | J12: Valid Scores entered | K12: OK | L12: OK
A13: 15.06.2015 | B13: 9 | C13: Bye
A14: 22.06.2015 | B14: 10 | C14: Home | D14: Plume | E14: 3 | F14: 2 | G14: 53 | H14: 41 | I14: 1 | J14: Valid Scores entered | K14: OK | L14: OK
A15: 29.06.2015 | B15: 11 | C15: Away | D15: Bucks Head | E15: ='Bucks Head'!F15 -> 4 | F15: 1 | G15: ='Bucks Head'!H15 -> 60 | H15: ='Bucks Head'!G15 -> 33 | I15: 1 | J15: Valid Scores entered | K15: OK | L15: OK
A16: 06.07.2015 | B16: 12 | C16: Home | D16: George Bees | E16: 4 | F16: 1 | G16: 57 | H16: 37 | I16: 1 | J16: Valid Scores entered | K16: OK | L16: OK
A17: 13.07.2015 | B17: 13 | C17: Away | D17: Woodentops | E17: =Woodentops!F17 -> 3 | F17: 2 | G17: =Woodentops!H17 -> 49 | H17: =Woodentops!G17 -> 53 | I17: 1 | J17: Valid Scores entered | K17: OK | L17: OK
A18: 20.07.2015 | B18: 14 | C18: Home | D18: Rising Sun | E18: 5 | F18: 0 | G18: 65 | H18: 31 | I18: 1 | J18: Valid Scores entered | K18: OK | L18: OK
A19: 27.07.2015 | B19: 15 | C19: Away | D19: George A | E19: ='George A'!F19 -> 4 | F19: 1 | G19: ='George A'!H19 -> 58 | H19: ='George A'!G19 -> 46 | I19: 1 | J19: Valid Scores entered | K19: OK | L19: OK
A20: 03.08.2015 | B20: 16 | C20: Bye
A21: 10.08.2015 | B21: 17 | C21: Away | D21: Plume | E21: =Plume!F21 -> 3 | F21: 2 | G21: =Plume!H21 -> 56 | H21: =Plume!G21 -> 55 | I21: 1 | J21: Valid Scores entered | K21: OK | L21: OK
A22: 17.08.2015 | B22: 18 | C22: Home | D22: Bucks Head | E22: 4 | F22: 1 | G22: 62 | H22: 44 | I22: 1 | J22: Valid Scores entered | K22: OK | L22: OK
A23: 24.08.2015 | B23: 19 | C23: Away | D23: George Bees | E23: ='George Bees'!F23 -> 3 | F23: 2 | G23: ='George Bees'!H23 -> 45 | H23: ='George Bees'!G23 -> 47 | I23: 1 | J23: Valid Scores entered | K23: OK | L23: OK
A24: 31.08.2015 | B24: 20 | C24: Bank Hol
A25: 07.09.2015 | B25: 21 | C25: Home | D25: Woodentops | E25: 3 | F25: 2 | G25: 54 | H25: 50 | I25: 1 | J25: Valid Scores entered | K25: OK | L25: OK
A26: 14.09.2015 | B26: 22 | C26: Away | D26: Rising Sun | E26: ='Rising Sun'!F26 -> 4 | F26: 1 | G26: ='Rising Sun'!H26 -> 57 | H26: ='Rising Sun'!G26 -> 37 | I26: 1 | J26: Valid Scores entered | K26: OK | L26: OK
A27: 21.09.2015 | B27: 23 | C27: Home | D27: George A | E27: 3 | F27: 2 | G27: 57 | H27: 38 | I27: 1 | J27: Valid Scores entered | K27: OK | L27: OK
A28: 28.09.2015 | B28: 24 | C28: Bye

Sheet Plume
A2: Team | B2: Plume
K3: Check that there are enough points to win the games
A4: Date | B4: Week | C4: Home/Away | D4: Opponent | E4: Games Won | F4: Games lost | G4: Points For | H4: Points Against | I4: Match Won? | J4: Check that input numbers are within range | K4: Home | L4: Away
A5: 20.04.2014 | B5: 1 | C5: Home | D5: OldUns | E5: 3 | F5: =IF(E5="","",5-E5) -> 2 | G5: 58 | H5: 52 | I5: =IF(E5="","",IF(E5>2,1,0)) -> 1 | J5: =IF(E5="","",IF(OR(E5<0,E5>5,G5<0,G5>(5*13),H5<0,H5>(5*13)),"Number out of range error","Valid Scores entered")) -> Valid Scores entered | K5: =IF(E5="","",IF((E5*13>G5),"Error in submitting Games Won or Points Home","OK")) -> OK | L5: =IF(E5="","",IF((F5*13>H5),"Error in submitting Games Won or Points Away","OK")) -> OK
A6: 27.04.2015 | B6: =B5+1 -> 2 | C6: Bye | I6: =IF(E6="","",IF(E6>2,1,0)) ->  | J6: =IF(E6="","",IF(OR(E6<0,E6>5,G6<0,G6>(5*13),H6<0,H6>(5*13)),"Number out of range error","Valid Scores entered")) ->  | K6: =IF(E6="","",IF((E6*13>G6),"Error in submitting Games Won or Points Home","OK")) ->  | L6: =IF(E6="","",IF((F6*13>H6),"Error in submitting Games Won or Points Away","OK")) -> 
A7: 04.05.2015 | B7: =B6+1 -> 3 | C7: Bank Hol
A8: 11.05.2015 | B8: 4 | C8: Away | D8: Bucks Head | E8: ='Bucks Head'!F8 -> 1 | F8: 4 | G8: ='Bucks Head'!H8 -> 49 | H8: ='Bucks Head'!G8 -> 57 | I8: 0 | J8: Valid Scores entered | K8: OK | L8: OK
A9: 18.05.2015 | B9: 5 | C9: Home | D9: George Bees | E9: 1 | F9: 4 | G9: 46 | H9: 55 | I9: 0 | J9: Valid Scores entered | K9: OK | L9: OK
A10: 25.05.2015 | B10: 6 | C10: Bank Hol
A11: 01.06.2015 | B11: 7 | C11: Away | D11: Woodentops | E11: =Woodentops!F11 -> 3 | F11: 2 | G11: =Woodentops!H11 -> 50 | H11: =Woodentops!G11 -> 47 | I11: 1 | J11: Valid Scores entered | K11: OK | L11: OK
A12: 08.06.2015 | B12: 8 | C12: Home | D12: Rising Sun | E12: 5 | F12: 0 | G12: 65 | H12: 35 | I12: 1 | J12: Valid Scores entered | K12: OK | L12: OK
A13: 15.06.2015 | B13: 9 | C13: Away | D13: George A | E13: ='George A'!F13 -> 3 | F13: 2 | G13: ='George A'!H13 -> 52 | H13: ='George A'!G13 -> 46 | I13: 1 | J13: Valid Scores entered | K13: OK | L13: OK
A14: 22.06.2015 | B14: 10 | C14: Away | D14: OldUns | E14: =OldUns!F14 -> 2 | F14: 3 | G14: =OldUns!H14 -> 41 | H14: =OldUns!G14 -> 53 | I14: 0 | J14: Valid Scores entered | K14: OK | L14: OK
A15: 29.06.2015 | B15: 11 | C15: Bye
A16: 06.07.2015 | B16: 12 | C16: Home | D16: Bucks Head | E16: 4 | F16: 1 | G16: 63 | H16: 31 | I16: 1 | J16: Valid Scores entered | K16: OK | L16: OK
A17: 13.07.2015 | B17: 13 | C17: Away | D17: George Bees | E17: ='George Bees'!F17 -> 1 | F17: 4 | G17: ='George Bees'!H17 -> 27 | H17: ='George Bees'!G17 -> 63 | I17: 0 | J17: Valid Scores entered | K17: OK | L17: OK
A18: 20.07.2015 | B18: 14 | C18: Home | D18: Woodentops | E18: 2 | F18: 3 | G18: 46 | H18: 58 | I18: 0 | J18: Valid Scores entered | K18: OK | L18: OK
A19: 27.07.2015 | B19: 15 | C19: Away | D19: Rising Sun | E19: ='Rising Sun'!F19 -> 4 | F19: 1 | G19: ='Rising Sun'!H19 -> 61 | H19: ='Rising Sun'!G19 -> 51 | I19: 1 | J19: Valid Scores entered | K19: OK | L19: OK
A20: 03.08.2015 | B20: 16 | C20: Home | D20: George A | E20: 2 | F20: 3 | G20: 39 | H20: 49 | I20: 0 | J20: Valid Scores entered | K20: OK | L20: OK
A21: 10.08.2015 | B21: 17 | C21: Home | D21: OldUns | E21: 2 | F21: 3 | G21: 55 | H21: 56 | I21: 0 | J21: Valid Scores entered | K21: OK | L21: OK
A22: 17.08.2015 | B22: 18 | C22: Bye
A23: 24.08.2015 | B23: 19 | C23: Away | D23: Bucks Head | E23: ='Bucks Head'!F23 -> 2 | F23: 3 | G23: ='Bucks Head'!H23 -> 40 | H23: ='Bucks Head'!G23 -> 57 | I23: 0 | J23: Valid Scores entered | K23: OK | L23: OK
A24: 31.08.2015 | B24: 20 | C24: Bank Hol
A25: 07.09.2015 | B25: 21 | C25: Home | D25: George Bees | E25: 3 | F25: 2 | G25: 52 | H25: 47 | I25: 1 | J25: Valid Scores entered | K25: OK | L25: OK
A26: 14.09.2015 | B26: 22 | C26: Away | D26: Woodentops | E26: =Woodentops!F26 -> 2 | F26: 3 | G26: =Woodentops!H26 -> 46 | H26: =Woodentops!G26 -> 58 | I26: 0 | J26: Valid Scores entered | K26: OK | L26: OK
A27: 21.09.2015 | B27: 23 | C27: Home | D27: Rising Sun | E27: 3 | F27: 2 | G27: 53 | H27: 45 | I27: 1 | J27: Valid Scores entered | K27: OK | L27: OK
A28: 28.09.2015 | B28: 24 | C28: Away | D28: George A | E28: ='George A'!F28 -> 3 | F28: 2 | G28: ='George A'!H28 -> 47 | H28: ='George A'!G28 -> 37 | I28: 1 | J28: Valid Scores entered | K28: OK | L28: OK

Sheet Bucks Head
A2: Team | B2: Bucks Head
K3: Check that there are enough points to win the games
A4: Date | B4: Week | C4: Home/Away | D4: Opponent | E4: Games Won | F4: Games lost | G4: Points For | H4: Points Against | I4: Match Won? | J4: Check that input numbers are within range | K4: Home | L4: Away
A5: 20.04.2014 | B5: 1 | C5: Home | D5: George A | E5: 3 | F5: =IF(E5="","",5-E5) -> 2 | G5: 51 | H5: 44 | I5: =IF(E5="","",IF(E5>2,1,0)) -> 1 | J5: =IF(E5="","",IF(OR(E5<0,E5>5,G5<0,G5>(5*13),H5<0,H5>(5*13)),"Number out of range error","Valid Scores entered")) -> Valid Scores entered | K5: =IF(E5="","",IF((E5*13>G5),"Error in submitting Games Won or Points Home","OK")) -> OK | L5: =IF(E5="","",IF((F5*13>H5),"Error in submitting Games Won or Points Away","OK")) -> OK
A6: 27.04.2015 | B6: =B5+1 -> 2 | C6: Away | D6: OldUns | E6: =OldUns!F6 -> 4 | F6: 1 | G6: =OldUns!H6 -> 63 | H6: =OldUns!G6 -> 36 | I6: =IF(E6="","",IF(E6>2,1,0)) -> 1 | J6: =IF(E6="","",IF(OR(E6<0,E6>5,G6<0,G6>(5*13),H6<0,H6>(5*13)),"Number out of range error","Valid Scores entered")) -> Valid Scores entered | K6: =IF(E6="","",IF((E6*13>G6),"Error in submitting Games Won or Points Home","OK")) -> OK | L6: =IF(E6="","",IF((F6*13>H6),"Error in submitting Games Won or Points Away","OK")) -> OK
A7: 04.05.2015 | B7: =B6+1 -> 3 | C7: Bank Hol
A8: 11.05.2015 | B8: 4 | C8: Home | D8: Plume | E8: 4 | F8: 1 | G8: 57 | H8: 49 | I8: 1 | J8: Valid Scores entered | K8: OK | L8: OK
A9: 18.05.2015 | B9: 5 | C9: Bye
A10: 25.05.2015 | B10: 6 | C10: Bank Hol
A11: 01.06.2015 | B11: 7 | C11: Away | D11: George Bees | E11: ='George Bees'!F11 -> 2 | F11: =IF(E11="","",5-E11) -> 3 | G11: ='George Bees'!H11 -> 46 | H11: ='George Bees'!G11 -> 58 | I11: =IF(E11="","",IF(E11>2,1,0)) -> 0 | J11: =IF(E11="","",IF(OR(E11<0,E11>5,G11<0,G11>(5*13),H11<0,H11>(5*13)),"Number out of range error","Valid Scores entered")) -> Valid Scores entered | K11: =IF(E11="","",IF((E11*13>G11),"Error in submitting Games Won or Points Home","OK")) -> OK | L11: =IF(E11="","",IF((F11*13>H11),"Error in submitting Games Won or Points Away","OK")) -> OK
A12: 08.06.2015 | B12: 8 | C12: Home | D12: Woodentops | E12: 1 | F12: 4 | G12: 38 | H12: 58 | I12: 0 | J12: Valid Scores entered | K12: OK | L12: OK
A13: 15.06.2015 | B13: 9 | C13: Away | D13: Rising Sun | E13: ='Rising Sun'!F13 -> 3 | F13: 2 | G13: ='Rising Sun'!H13 -> 57 | H13: ='Rising Sun'!G13 -> 44 | I13: 1 | J13: Valid Scores entered | K13: OK | L13: OK
A14: 22.06.2015 | B14: 10 | C14: Away | D14: George A | E14: ='George A'!F14 -> 3 | F14: =IF(E14="","",5-E14) -> 2 | G14: ='George A'!H14 -> 53 | H14: ='George A'!G14 -> 49 | I14: =IF(E14="","",IF(E14>2,1,0)) -> 1 | J14: =IF(E14="","",IF(OR(E14<0,E14>5,G14<0,G14>(5*13),H14<0,H14>(5*13)),"Number out of range error","Valid Scores entered")) -> Valid Scores entered | K14: =IF(E14="","",IF((E14*13>G14),"Error in submitting Games Won or Points Home","OK")) -> OK | L14: =IF(E14="","",IF((F14*13>H14),"Error in submitting Games Won or Points Away","OK")) -> OK
A15: 29.06.2015 | B15: 11 | C15: Home | D15: OldUns | E15: 1 | F15: 4 | G15: 33 | H15: 60 | I15: 0 | J15: Valid Scores entered | K15: OK | L15: OK
A16: 06.07.2015 | B16: 12 | C16: Away | D16: Plume | E16: =Plume!F16 -> 1 | F16: 4 | G16: =Plume!H16 -> 31 | H16: =Plume!G16 -> 63 | I16: 0 | J16: Valid Scores entered | K16: OK | L16: OK
A17: 13.07.2015 | B17: 13 | C17: Bye
A18: 20.07.2015 | B18: 14 | C18: Home | D18: George Bees | E18: 1 | F18: 4 | G18: 30 | H18: 63 | I18: 0 | J18: Valid Scores entered | K18: OK | L18: OK
A19: 27.07.2015 | B19: 15 | C19: Away | D19: Woodentops | E19: =Woodentops!F19 -> 1 | F19: 4 | G19: =Woodentops!H19 -> 36 | H19: =Woodentops!G19 -> 64 | I19: 0 | J19: Valid Scores entered | K19: OK | L19: OK
A20: 03.08.2015 | B20: 16 | C20: Home | D20: Rising Sun | E20: 5 | F20: 0 | G20: 65 | H20: 41 | I20: 1 | J20: Valid Scores entered | K20: OK | L20: OK
A21: 10.08.2015 | B21: 17 | C21: Home | D21: George A | E21: 3 | F21: 2 | G21: 59 | H21: 56 | I21: 1 | J21: Valid Scores entered | K21: OK | L21: OK
A22: 17.08.2015 | B22: 18 | C22: Away | D22: OldUns | E22: =OldUns!F22 -> 1 | F22: 4 | G22: =OldUns!H22 -> 44 | H22: =OldUns!G22 -> 62 | I22: 0 | J22: Valid Scores entered | K22: OK | L22: OK
A23: 24.08.2015 | B23: 19 | C23: Home | D23: Plume | E23: 3 | F23: 2 | G23: 57 | H23: 40 | I23: 1 | J23: Valid Scores entered | K23: OK | L23: OK
A24: 31.08.2015 | B24: 20 | C24: Bank Hol
A25: 07.09.2015 | B25: 21 | C25: Bye
A26: 14.09.2015 | B26: 22 | C26: Away | D26: George Bees | E26: ='George Bees'!F26 -> 1 | F26: 4 | G26: ='George Bees'!H26 -> 43 | H26: ='George Bees'!G26 -> 57 | I26: 0 | J26: Valid Scores entered | K26: OK | L26: OK
A27: 21.09.2015 | B27: 23 | C27: Home | D27: Woodentops | E27: 2 | F27: 3 | G27: 34 | H27: 58 | I27: 0 | J27: Valid Scores entered | K27: OK | L27: OK
A28: 28.09.2015 | B28: 24 | C28: Away | D28: Rising Sun | E28: ='Rising Sun'!F28 -> 2 | F28: 3 | G28: ='Rising Sun'!H28 -> 50 | H28: ='Rising Sun'!G28 -> 63 | I28: 0 | J28: Valid Scores entered | K28: OK | L28: OK

Sheet George Bees
A2: Team | B2: George Bees
K3: Check that there are enough points to win the games
A4: Date | B4: Week | C4: Home/Away | D4: Opponent | E4: Games Won | F4: Games lost | G4: Points For | H4: Points Against | I4: Match Won? | J4: Check that input numbers are within range | K4: Home | L4: Away
A5: 20.04.2014 | B5: 1 | C5: Home | D5: Rising Sun | E5: 5 | F5: =IF(E5="","",5-E5) -> 0 | G5: 65 | H5: 21 | I5: =IF(E5="","",IF(E5>2,1,0)) -> 1 | J5: =IF(E5="","",IF(OR(E5<0,E5>5,G5<0,G5>(5*13),H5<0,H5>(5*13)),"Number out of range error","Valid Scores entered")) -> Valid Scores entered | K5: =IF(E5="","",IF((E5*13>G5),"Error in submitting Games Won or Points Home","OK")) -> OK | L5: =IF(E5="","",IF((F5*13>H5),"Error in submitting Games Won or Points Away","OK")) -> OK
A6: 27.04.2015 | B6: =B5+1 -> 2 | C6: Away | D6: George A | E6: ='George A'!F6 -> 4 | F6: 1 | G6: ='George A'!H6 -> 63 | H6: ='George A'!G6 -> 28 | I6: =IF(E6="","",IF(E6>2,1,0)) -> 1 | J6: =IF(E6="","",IF(OR(E6<0,E6>5,G6<0,G6>(5*13),H6<0,H6>(5*13)),"Number out of range error","Valid Scores entered")) -> Valid Scores entered | K6: =IF(E6="","",IF((E6*13>G6),"Error in submitting Games Won or Points Home","OK")) -> OK | L6: =IF(E6="","",IF((F6*13>H6),"Error in submitting Games Won or Points Away","OK")) -> OK
A7: 04.05.2015 | B7: =B6+1 -> 3 | C7: Bank Hol
A8: 11.05.2015 | B8: 4 | C8: Home | D8: OldUns | E8: 4 | F8: 1 | G8: 61 | H8: 26 | I8: 1 | J8: Valid Scores entered | K8: OK | L8: OK
A9: 18.05.2015 | B9: 5 | C9: Away | D9: Plume | E9: =Plume!F9 -> 4 | F9: 1 | G9: =Plume!H9 -> 55 | H9: =Plume!G9 -> 46 | I9: 1 | J9: Valid Scores entered | K9: OK | L9: OK
A10: 25.05.2015 | B10: 6 | C10: Bank Hol
A11: 01.06.2015 | B11: 7 | C11: Home | D11: Bucks Head | E11: 3 | F11: 2 | G11: 58 | H11: 46 | I11: 1 | J11: Valid Scores entered | K11: OK | L11: OK
A12: 08.06.2015 | B12: 8 | C12: Bye
A13: 15.06.2015 | B13: 9 | C13: Away | D13: Woodentops | E13: =Woodentops!F13 -> 4 | F13: 1 | G13: =Woodentops!H13 -> 62 | H13: =Woodentops!G13 -> 49 | I13: 1 | J13: Valid Scores entered | K13: OK | L13: OK
A14: 22.06.2015 | B14: 10 | C14: Away | D14: Rising Sun | E14: ='Rising Sun'!F14 -> 4 | F14: 1 | G14: ='Rising Sun'!H14 -> 63 | H14: ='Rising Sun'!G14 -> 43 | I14: 1 | J14: Valid Scores entered | K14: OK | L14: OK
A15: 29.06.2015 | B15: 11 | C15: Home | D15: George A | E15: 4 | F15: 1 | G15: 63 | H15: 22 | I15: 1 | J15: Valid Scores entered | K15: OK | L15: OK
A16: 06.07.2015 | B16: 12 | C16: Away | D16: OldUns | E16: =OldUns!F16 -> 1 | F16: 4 | G16: =OldUns!H16 -> 37 | H16: =OldUns!G16 -> 57 | I16: 0 | J16: Valid Scores entered | K16: OK | L16: OK
A17: 13.07.2015 | B17: 13 | C17: Home | D17: Plume | E17: 4 | F17: 1 | G17: 63 | H17: 27 | I17: 1 | J17: Valid Scores entered | K17: OK | L17: OK
A18: 20.07.2015 | B18: 14 | C18: Away | D18: Bucks Head | E18: ='Bucks Head'!F18 -> 4 | F18: 1 | G18: ='Bucks Head'!H18 -> 63 | H18: ='Bucks Head'!G18 -> 30 | I18: 1 | J18: Valid Scores entered | K18: OK | L18: OK
A19: 27.07.2015 | B19: 15 | C19: Bye
A20: 03.08.2015 | B20: 16 | C20: Home | D20: Woodentops | E20: 3 | F20: 2 | G20: 50 | H20: 44 | I20: 1 | J20: Valid Scores entered | K20: OK | L20: OK
A21: 10.08.2015 | B21: 17 | C21: Home | D21: Rising Sun | E21: 4 | F21: 1 | G21: 64 | H21: 42 | I21: 1 | J21: Valid Scores entered | K21: OK | L21: OK
A22: 17.08.2015 | B22: 18 | C22: Away | D22: George A | E22: ='George A'!F22 -> 4 | F22: 1 | G22: ='George A'!H22 -> 62 | H22: ='George A'!G22 -> 29 | I22: 1 | J22: Valid Scores entered | K22: OK | L22: OK
A23: 24.08.2015 | B23: 19 | C23: Home | D23: OldUns | E23: 2 | F23: 3 | G23: 47 | H23: 45 | I23: 0 | J23: Valid Scores entered | K23: OK | L23: OK
A24: 31.08.2015 | B24: 20 | C24: Bank Hol
A25: 07.09.2015 | B25: 21 | C25: Away | D25: Plume | E25: =Plume!F25 -> 2 | F25: 3 | G25: =Plume!H25 -> 47 | H25: =Plume!G25 -> 52 | I25: 0 | J25: Valid Scores entered | K25: OK | L25: OK
A26: 14.09.2015 | B26: 22 | C26: Home | D26: Bucks Head | E26: 4 | F26: 1 | G26: 57 | H26: 43 | I26: 1 | J26: Valid Scores entered | K26: OK | L26: OK
A27: 21.09.2015 | B27: 23 | C27: Bye
A28: 28.09.2015 | B28: 24 | C28: Away | D28: Woodentops | E28: =Woodentops!F28 -> 3 | F28: 2 | G28: =Woodentops!H28 -> 52 | H28: =Woodentops!G28 -> 39 | I28: 1 | J28: Valid Scores entered | K28: OK | L28: OK
